Workbook

Sheet ALL
B3: =TODAY() -> 2022-05-18

Sheet AUTOCOOL
A1: CLIENT | B1: AUTOCOOL | E1: CONTACT 1 NAME | I1: CONTACT 2 NAME
A2: CODE | E2: MOB | I2: MOB
A3: VALIDATION | B3: 30 | E3: LAND | I3: LAND
A4: SELLER | E4: EMAIL | I4: EMAIL
A5: UNDUE | B5: 30 | E5: DUE | F5: 60 | I5: OVER DUE | J5: > 60
A6: DATE ECVD | B6: INV. # | C6: LNO | D6: C2H2 | E6: AR | F6: CO2 | G6: H2 | H6: O2 | I6: N2 | J6: OTHER | K6: TOTAL VALUE | L6: DURATION | M6: DAYS
A7: 2022-02-28 | B7: 26402 | E7: 5220.6 | H7: 2621.6 | I7: 4627.35 | K7: =SUM(C7:J7) -> 12469.55 | L7: =IF(AND(M7>365),"OVER A YEAR",IF(AND(M7>0,M7<31),"1 MONTH",IF(AND(M7>30,M7<61),"2 MONTHS",IF(AND(M7>60,M7<91),"3 MONTHS",IF(AND(M7>90,M7<181),"3 : 6 MONTHS",IF(AND(M7>180,M7<271),"6 : 9 MONTHS",IF(AND(M7>270,M7<366),"9 : 12 MONTHS",IF(M7=0,0)))))))) -> 3 MONTHS | M7: =IF((ALL!$B$3-AUTOCOOL!A7)>40000,0,(ALL!$B$3-AUTOCOOL!A7)) -> 79
A8: 2022-02-28 | B8: 12445 | C8: 104267.3141 | K8: 104267.3141 | L8: =IF(AND(M8>365),"OVER A YEAR",IF(AND(M8>0,M8<31),"1 MONTH",IF(AND(M8>30,M8<61),"2 MONTHS",IF(AND(M8>60,M8<91),"3 MONTHS",IF(AND(M8>90,M8<181),"3 : 6 MONTHS",IF(AND(M8>180,M8<271),"6 : 9 MONTHS",IF(AND(M8>270,M8<366),"9 : 12 MONTHS",IF(M8=0,0)))))))) -> 3 MONTHS | M8: =IF((ALL!$B$3-AUTOCOOL!A8)>40000,0,(ALL!$B$3-AUTOCOOL!A8)) -> 79
A9: 2022-03-31 | B9: 12542 | C9: 129942.1305 | K9: 129942.1305 | L9: =IF(AND(M9>365),"OVER A YEAR",IF(AND(M9>0,M9<31),"1 MONTH",IF(AND(M9>30,M9<61),"2 MONTHS",IF(AND(M9>60,M9<91),"3 MONTHS",IF(AND(M9>90,M9<181),"3 : 6 MONTHS",IF(AND(M9>180,M9<271),"6 : 9 MONTHS",IF(AND(M9>270,M9<366),"9 : 12 MONTHS",IF(M9=0,0)))))))) -> 2 MONTHS | M9: =IF((ALL!$B$3-AUTOCOOL!A9)>40000,0,(ALL!$B$3-AUTOCOOL!A9)) -> 48
A10: 2022-03-31 | B10: 26910 | E10: 8265.95 | H10: 2712 | I10: 6102 | K10: 17079.95 | L10: 2 MONTHS | M10: =IF((ALL!$B$3-AUTOCOOL!A10)>40000,0,(ALL!$B$3-AUTOCOOL!A10)) -> 48
A11: 2022-04-30 | B11: 12652 | C11: 101217.5098 | K11: 101217.5098 | L11: 1 MONTH | M11: =IF((ALL!$B$3-AUTOCOOL!A11)>40000,0,(ALL!$B$3-AUTOCOOL!A11)) -> 18
A12: 2022-05-09 | B12: 27351 | E12: 4785.55 | H12: 2079.2 | I12: 5491.8 | K12: 12356.55 | L12: 1 MONTH | M12: =IF((ALL!$B$3-AUTOCOOL!A12)>40000,0,(ALL!$B$3-AUTOCOOL!A12)) -> 9
A13: 2022-05-17 | K13: 0 | L13: 1 MONTH | M13: =IF((ALL!$B$3-AUTOCOOL!A13)>40000,0,(ALL!$B$3-AUTOCOOL!A13)) -> 1
A14: 2022-04-17 | K14: 0 | L14: 2 MONTHS | M14: =IF((ALL!$B$3-AUTOCOOL!A14)>40000,0,(ALL!$B$3-AUTOCOOL!A14)) -> 31
A15: 2022-03-17 | K15: 0 | L15: 3 MONTHS | M15: =IF((ALL!$B$3-AUTOCOOL!A15)>40000,0,(ALL!$B$3-AUTOCOOL!A15)) -> 62
A16: 2022-02-17 | K16: 0 | L16: 3 MONTHS | M16: =IF((ALL!$B$3-AUTOCOOL!A16)>40000,0,(ALL!$B$3-AUTOCOOL!A16)) -> 90
A17: 2022-01-17 | K17: 0 | L17: 3 : 6 MONTHS | M17: =IF((ALL!$B$3-AUTOCOOL!A17)>40000,0,(ALL!$B$3-AUTOCOOL!A17)) -> 121
A18: 2021-12-17 | K18: 0 | L18: 3 : 6 MONTHS | M18: =IF((ALL!$B$3-AUTOCOOL!A18)>40000,0,(ALL!$B$3-AUTOCOOL!A18)) -> 152
A19: 2021-11-17 | K19: 0 | L19: 6 : 9 MONTHS | M19: =IF((ALL!$B$3-AUTOCOOL!A19)>40000,0,(ALL!$B$3-AUTOCOOL!A19)) -> 182
A20: 2021-10-17 | K20: 0 | L20: 6 : 9 MONTHS | M20: =IF((ALL!$B$3-AUTOCOOL!A20)>40000,0,(ALL!$B$3-AUTOCOOL!A20)) -> 213
A21: 2021-09-17 | K21: 0 | L21: 6 : 9 MONTHS | M21: =IF((ALL!$B$3-AUTOCOOL!A21)>40000,0,(ALL!$B$3-AUTOCOOL!A21)) -> 243
A22: 2021-08-17 | K22: 0 | L22: 9 : 12 MONTHS | M22: =IF((ALL!$B$3-AUTOCOOL!A22)>40000,0,(ALL!$B$3-AUTOCOOL!A22)) -> 274
A23: 2021-07-17 | K23: 0 | L23: 9 : 12 MONTHS | M23: =IF((ALL!$B$3-AUTOCOOL!A23)>40000,0,(ALL!$B$3-AUTOCOOL!A23)) -> 305
A24: 2021-06-17 | K24: 0 | L24: 9 : 12 MONTHS | M24: =IF((ALL!$B$3-AUTOCOOL!A24)>40000,0,(ALL!$B$3-AUTOCOOL!A24)) -> 335
A25: 2021-05-17 | K25: 0 | L25: OVER A YEAR | M25: =IF((ALL!$B$3-AUTOCOOL!A25)>40000,0,(ALL!$B$3-AUTOCOOL!A25)) -> 366
A26: 2021-04-17 | K26: 0 | L26: OVER A YEAR | M26: =IF((ALL!$B$3-AUTOCOOL!A26)>40000,0,(ALL!$B$3-AUTOCOOL!A26)) -> 396
A27: 2021-03-17 | K27: 0 | L27: OVER A YEAR | M27: =IF((ALL!$B$3-AUTOCOOL!A27)>40000,0,(ALL!$B$3-AUTOCOOL!A27)) -> 427
A28: 2021-02-17 | K28: 0 | L28: OVER A YEAR | M28: =IF((ALL!$B$3-AUTOCOOL!A28)>40000,0,(ALL!$B$3-AUTOCOOL!A28)) -> 455
A29: 2021-01-17 | K29: 0 | L29: OVER A YEAR | M29: =IF((ALL!$B$3-AUTOCOOL!A29)>40000,0,(ALL!$B$3-AUTOCOOL!A29)) -> 486
A30: 2020-12-17 | K30: 0 | L30: OVER A YEAR | M30: =IF((ALL!$B$3-AUTOCOOL!A30)>40000,0,(ALL!$B$3-AUTOCOOL!A30)) -> 517
A31: 2020-11-17 | K31: 0 | L31: OVER A YEAR | M31: =IF((ALL!$B$3-AUTOCOOL!A31)>40000,0,(ALL!$B$3-AUTOCOOL!A31)) -> 547
A32: 2020-10-17 | K32: 0 | L32: OVER A YEAR | M32: =IF((ALL!$B$3-AUTOCOOL!A32)>40000,0,(ALL!$B$3-AUTOCOOL!A32)) -> 578
A33: 2020-09-17 | K33: 0 | L33: OVER A YEAR | M33: =IF((ALL!$B$3-AUTOCOOL!A33)>40000,0,(ALL!$B$3-AUTOCOOL!A33)) -> 608
A34: 2020-08-17 | K34: 0 | L34: OVER A YEAR | M34: =IF((ALL!$B$3-AUTOCOOL!A34)>40000,0,(ALL!$B$3-AUTOCOOL!A34)) -> 639
A35: 2020-07-17 | K35: 0 | L35: OVER A YEAR | M35: =IF((ALL!$B$3-AUTOCOOL!A35)>40000,0,(ALL!$B$3-AUTOCOOL!A35)) -> 670
A36: 2020-06-17 | K36: 0 | L36: OVER A YEAR | M36: =IF((ALL!$B$3-AUTOCOOL!A36)>40000,0,(ALL!$B$3-AUTOCOOL!A36)) -> 700
A37: 2020-05-17 | K37: 0 | L37: OVER A YEAR | M37: =IF((ALL!$B$3-AUTOCOOL!A37)>40000,0,(ALL!$B$3-AUTOCOOL!A37)) -> 731
A38: 2020-04-17 | K38: 0 | L38: OVER A YEAR | M38: =IF((ALL!$B$3-AUTOCOOL!A38)>40000,0,(ALL!$B$3-AUTOCOOL!A38)) -> 761
A39: 2020-03-17 | K39: 0 | L39: OVER A YEAR | M39: =IF((ALL!$B$3-AUTOCOOL!A39)>40000,0,(ALL!$B$3-AUTOCOOL!A39)) -> 792
A40: 2020-02-17 | K40: 0 | L40: OVER A YEAR | M40: =IF((ALL!$B$3-AUTOCOOL!A40)>40000,0,(ALL!$B$3-AUTOCOOL!A40)) -> 821
A41: 2020-01-17 | K41: 0 | L41: OVER A YEAR | M41: =IF((ALL!$B$3-AUTOCOOL!A41)>40000,0,(ALL!$B$3-AUTOCOOL!A41)) -> 852
A42: 2019-12-17 | K42: 0 | L42: OVER A YEAR | M42: =IF((ALL!$B$3-AUTOCOOL!A42)>40000,0,(ALL!$B$3-AUTOCOOL!A42)) -> 883
A43: 2019-11-17 | K43: 0 | L43: OVER A YEAR | M43: =IF((ALL!$B$3-AUTOCOOL!A43)>40000,0,(ALL!$B$3-AUTOCOOL!A43)) -> 913
A44: 2019-10-17 | K44: 0 | L44: OVER A YEAR | M44: =IF((ALL!$B$3-AUTOCOOL!A44)>40000,0,(ALL!$B$3-AUTOCOOL!A44)) -> 944
A45: 2019-09-17 | K45: 0 | L45: OVER A YEAR | M45: =IF((ALL!$B$3-AUTOCOOL!A45)>40000,0,(ALL!$B$3-AUTOCOOL!A45)) -> 974
A46: 2019-08-17 | K46: 0 | L46: OVER A YEAR | M46: =IF((ALL!$B$3-AUTOCOOL!A46)>40000,0,(ALL!$B$3-AUTOCOOL!A46)) -> 1005
A47: 2019-07-17 | K47: 0 | L47: OVER A YEAR | M47: =IF((ALL!$B$3-AUTOCOOL!A47)>40000,0,(ALL!$B$3-AUTOCOOL!A47)) -> 1036
A48: 2019-06-17 | K48: 0 | L48: OVER A YEAR | M48: =IF((ALL!$B$3-AUTOCOOL!A48)>40000,0,(ALL!$B$3-AUTOCOOL!A48)) -> 1066
A49: 2019-05-17 | K49: 0 | L49: OVER A YEAR | M49: =IF((ALL!$B$3-AUTOCOOL!A49)>40000,0,(ALL!$B$3-AUTOCOOL!A49)) -> 1097
A50: 2019-04-17 | K50: 0 | L50: OVER A YEAR | M50: =IF((ALL!$B$3-AUTOCOOL!A50)>40000,0,(ALL!$B$3-AUTOCOOL!A50)) -> 1127
A51: 2019-03-17 | K51: 0 | L51: OVER A YEAR | M51: =IF((ALL!$B$3-AUTOCOOL!A51)>40000,0,(ALL!$B$3-AUTOCOOL!A51)) -> 1158
A52: 2019-02-17 | K52: 0 | L52: OVER A YEAR | M52: =IF((ALL!$B$3-AUTOCOOL!A52)>40000,0,(ALL!$B$3-AUTOCOOL!A52)) -> 1186
A53: 2019-01-17 | K53: 0 | L53: OVER A YEAR | M53: =IF((ALL!$B$3-AUTOCOOL!A53)>40000,0,(ALL!$B$3-AUTOCOOL!A53)) -> 1217
A54: 2018-12-17 | K54: 0 | L54: OVER A YEAR | M54: =IF((ALL!$B$3-AUTOCOOL!A54)>40000,0,(ALL!$B$3-AUTOCOOL!A54)) -> 1248
A55: 2018-11-17 | K55: 0 | L55: OVER A YEAR | M55: =IF((ALL!$B$3-AUTOCOOL!A55)>40000,0,(ALL!$B$3-AUTOCOOL!A55)) -> 1278
A56: 2018-10-17 | K56: 0 | L56: OVER A YEAR | M56: =IF((ALL!$B$3-AUTOCOOL!A56)>40000,0,(ALL!$B$3-AUTOCOOL!A56)) -> 1309
A57: 2018-09-17 | K57: 0 | L57: OVER A YEAR | M57: =IF((ALL!$B$3-AUTOCOOL!A57)>40000,0,(ALL!$B$3-AUTOCOOL!A57)) -> 1339
A58: 2018-08-17 | K58: 0 | L58: OVER A YEAR | M58: =IF((ALL!$B$3-AUTOCOOL!A58)>40000,0,(ALL!$B$3-AUTOCOOL!A58)) -> 1370
A59: 2018-07-17 | K59: 0 | L59: OVER A YEAR | M59: =IF((ALL!$B$3-AUTOCOOL!A59)>40000,0,(ALL!$B$3-AUTOCOOL!A59)) -> 1401
A60: 2018-06-17 | K60: 0 | L60: OVER A YEAR | M60: =IF((ALL!$B$3-AUTOCOOL!A60)>40000,0,(ALL!$B$3-AUTOCOOL!A60)) -> 1431
A61: 2018-05-17 | K61: 0 | L61: OVER A YEAR | M61: =IF((ALL!$B$3-AUTOCOOL!A61)>40000,0,(ALL!$B$3-AUTOCOOL!A61)) -> 1462
A62: 2018-04-17 | K62: 0 | L62: OVER A YEAR | M62: =IF((ALL!$B$3-AUTOCOOL!A62)>40000,0,(ALL!$B$3-AUTOCOOL!A62)) -> 1492
A63: 2018-03-17 | K63: 0 | L63: OVER A YEAR | M63: =IF((ALL!$B$3-AUTOCOOL!A63)>40000,0,(ALL!$B$3-AUTOCOOL!A63)) -> 1523
A64: 2018-02-17 | K64: 0 | L64: OVER A YEAR | M64: =IF((ALL!$B$3-AUTOCOOL!A64)>40000,0,(ALL!$B$3-AUTOCOOL!A64)) -> 1551
A65: 2018-01-17 | K65: 0 | L65: OVER A YEAR | M65: =IF((ALL!$B$3-AUTOCOOL!A65)>40000,0,(ALL!$B$3-AUTOCOOL!A65)) -> 1582
A66: 2017-12-17 | K66: 0 | L66: OVER A YEAR | M66: =IF((ALL!$B$3-AUTOCOOL!A66)>40000,0,(ALL!$B$3-AUTOCOOL!A66)) -> 1613
A67: 2017-11-17 | K67: 0 | L67: OVER A YEAR | M67: =IF((ALL!$B$3-AUTOCOOL!A67)>40000,0,(ALL!$B$3-AUTOCOOL!A67)) -> 1643
A68: 2017-10-17 | K68: 0 | L68: OVER A YEAR | M68: =IF((ALL!$B$3-AUTOCOOL!A68)>40000,0,(ALL!$B$3-AUTOCOOL!A68)) -> 1674
A69: 2017-09-17 | K69: 0 | L69: OVER A YEAR | M69: =IF((ALL!$B$3-AUTOCOOL!A69)>40000,0,(ALL!$B$3-AUTOCOOL!A69)) -> 1704
A70: 2017-08-17 | K70: 0 | L70: OVER A YEAR | M70: =IF((ALL!$B$3-AUTOCOOL!A70)>40000,0,(ALL!$B$3-AUTOCOOL!A70)) -> 1735
A71: 2017-07-17 | K71: =SUM(C71:J71) -> 0 | L71: OVER A YEAR | M71: =IF((ALL!$B$3-AUTOCOOL!A71)>40000,0,(ALL!$B$3-AUTOCOOL!A71)) -> 1766
A72: 2017-06-17 | K72: 0 | L72: =IF(AND(M72>365),"OVER A YEAR",IF(AND(M72>0,M72<31),"1 MONTH",IF(AND(M72>30,M72<61),"2 MONTHS",IF(AND(M72>60,M72<91),"3 MONTHS",IF(AND(M72>90,M72<181),"3 : 6 MONTHS",IF(AND(M72>180,M72<271),"6 : 9 MONTHS",IF(AND(M72>270,M72<366),"9 : 12 MONTHS",IF(M72=0,0)))))))) -> OVER A YEAR | M72: =IF((ALL!$B$3-AUTOCOOL!A72)>40000,0,(ALL!$B$3-AUTOCOOL!A72)) -> 1796
A73: 2017-05-17 | K73: 0 | L73: OVER A YEAR | M73: =IF((ALL!$B$3-AUTOCOOL!A73)>40000,0,(ALL!$B$3-AUTOCOOL!A73)) -> 1827
A74: 2017-04-17 | K74: 0 | L74: OVER A YEAR | M74: =IF((ALL!$B$3-AUTOCOOL!A74)>40000,0,(ALL!$B$3-AUTOCOOL!A74)) -> 1857
A75: 2017-03-17 | K75: 0 | L75: OVER A YEAR | M75: =IF((ALL!$B$3-AUTOCOOL!A75)>40000,0,(ALL!$B$3-AUTOCOOL!A75)) -> 1888
A76: 2017-02-17 | K76: 0 | L76: OVER A YEAR | M76: =IF((ALL!$B$3-AUTOCOOL!A76)>40000,0,(ALL!$B$3-AUTOCOOL!A76)) -> 1916
A77: 2017-01-17 | K77: 0 | L77: OVER A YEAR | M77: =IF((ALL!$B$3-AUTOCOOL!A77)>40000,0,(ALL!$B$3-AUTOCOOL!A77)) -> 1947
A78: 2016-12-17 | K78: 0 | L78: OVER A YEAR | M78: =IF((ALL!$B$3-AUTOCOOL!A78)>40000,0,(ALL!$B$3-AUTOCOOL!A78)) -> 1978
A79: 2016-11-17 | K79: 0 | L79: OVER A YEAR | M79: =IF((ALL!$B$3-AUTOCOOL!A79)>40000,0,(ALL!$B$3-AUTOCOOL!A79)) -> 2008
A80: 2016-10-17 | K80: 0 | L80: OVER A YEAR | M80: =IF((ALL!$B$3-AUTOCOOL!A80)>40000,0,(ALL!$B$3-AUTOCOOL!A80)) -> 2039
A81: 2016-09-17 | K81: 0 | L81: OVER A YEAR | M81: =IF((ALL!$B$3-AUTOCOOL!A81)>40000,0,(ALL!$B$3-AUTOCOOL!A81)) -> 2069
A82: 2016-08-17 | K82: 0 | L82: OVER A YEAR | M82: =IF((ALL!$B$3-AUTOCOOL!A82)>40000,0,(ALL!$B$3-AUTOCOOL!A82)) -> 2100
A83: 2016-07-17 | K83: 0 | L83: OVER A YEAR | M83: =IF((ALL!$B$3-AUTOCOOL!A83)>40000,0,(ALL!$B$3-AUTOCOOL!A83)) -> 2131
A84: 2016-06-17 | K84: 0 | L84: OVER A YEAR | M84: =IF((ALL!$B$3-AUTOCOOL!A84)>40000,0,(ALL!$B$3-AUTOCOOL!A84)) -> 2161
A85: 2016-05-17 | K85: 0 | L85: OVER A YEAR | M85: =IF((ALL!$B$3-AUTOCOOL!A85)>40000,0,(ALL!$B$3-AUTOCOOL!A85)) -> 2192
A86: 2016-04-17 | K86: 0 | L86: OVER A YEAR | M86: =IF((ALL!$B$3-AUTOCOOL!A86)>40000,0,(ALL!$B$3-AUTOCOOL!A86)) -> 2222
A87: 2016-03-17 | K87: 0 | L87: OVER A YEAR | M87: =IF((ALL!$B$3-AUTOCOOL!A87)>40000,0,(ALL!$B$3-AUTOCOOL!A87)) -> 2253
A88: 2016-02-17 | K88: 0 | L88: OVER A YEAR | M88: =IF((ALL!$B$3-AUTOCOOL!A88)>40000,0,(ALL!$B$3-AUTOCOOL!A88)) -> 2282
A89: 2016-01-17 | K89: 0 | L89: OVER A YEAR | M89: =IF((ALL!$B$3-AUTOCOOL!A89)>40000,0,(ALL!$B$3-AUTOCOOL!A89)) -> 2313
A90: 2015-12-17 | K90: 0 | L90: OVER A YEAR | M90: =IF((ALL!$B$3-AUTOCOOL!A90)>40000,0,(ALL!$B$3-AUTOCOOL!A90)) -> 2344
A91: 2015-11-17 | K91: 0 | L91: OVER A YEAR | M91: =IF((ALL!$B$3-AUTOCOOL!A91)>40000,0,(ALL!$B$3-AUTOCOOL!A91)) -> 2374
A92: 2015-10-17 | K92: 0 | L92: OVER A YEAR | M92: =IF((ALL!$B$3-AUTOCOOL!A92)>40000,0,(ALL!$B$3-AUTOCOOL!A92)) -> 2405
A93: 2015-09-17 | K93: 0 | L93: OVER A YEAR | M93: =IF((ALL!$B$3-AUTOCOOL!A93)>40000,0,(ALL!$B$3-AUTOCOOL!A93)) -> 2435
A94: 2015-08-17 | K94: 0 | L94: OVER A YEAR | M94: =IF((ALL!$B$3-AUTOCOOL!A94)>40000,0,(ALL!$B$3-AUTOCOOL!A94)) -> 2466
A95: 2015-07-17 | K95: 0 | L95: OVER A YEAR | M95: =IF((ALL!$B$3-AUTOCOOL!A95)>40000,0,(ALL!$B$3-AUTOCOOL!A95)) -> 2497
A96: 2015-06-17 | K96: 0 | L96: OVER A YEAR | M96: =IF((ALL!$B$3-AUTOCOOL!A96)>40000,0,(ALL!$B$3-AUTOCOOL!A96)) -> 2527
A97: 2015-05-17 | K97: 0 | L97: OVER A YEAR | M97: =IF((ALL!$B$3-AUTOCOOL!A97)>40000,0,(ALL!$B$3-AUTOCOOL!A97)) -> 2558
A98: 2015-04-17 | K98: 0 | L98: OVER A YEAR | M98: =IF((ALL!$B$3-AUTOCOOL!A98)>40000,0,(ALL!$B$3-AUTOCOOL!A98)) -> 2588
A99: 2015-03-17 | K99: 0 | L99: OVER A YEAR | M99: =IF((ALL!$B$3-AUTOCOOL!A99)>40000,0,(ALL!$B$3-AUTOCOOL!A99)) -> 2619
A100: 2015-02-17 | K100: 0 | L100: OVER A YEAR | M100: =IF((ALL!$B$3-AUTOCOOL!A100)>40000,0,(ALL!$B$3-AUTOCOOL!A100)) -> 2647
K101: 0 | L101: 0 | M101: =IF((ALL!$B$3-AUTOCOOL!A101)>40000,0,(ALL!$B$3-AUTOCOOL!A101)) -> 0
K102: 0 | L102: 0 | M102: =IF((ALL!$B$3-AUTOCOOL!A102)>40000,0,(ALL!$B$3-AUTOCOOL!A102)) -> 0
K103: 0 | L103: 0 | M103: =IF((ALL!$B$3-AUTOCOOL!A103)>40000,0,(ALL!$B$3-AUTOCOOL!A103)) -> 0
K104: 0 | L104: 0 | M104: =IF((ALL!$B$3-AUTOCOOL!A104)>40000,0,(ALL!$B$3-AUTOCOOL!A104)) -> 0
K105: 0 | L105: 0 | M105: =IF((ALL!$B$3-AUTOCOOL!A105)>40000,0,(ALL!$B$3-AUTOCOOL!A105)) -> 0
K106: 0 | L106: 0 | M106: =IF((ALL!$B$3-AUTOCOOL!A106)>40000,0,(ALL!$B$3-AUTOCOOL!A106)) -> 0
K107: 0 | L107: 0 | M107: =IF((ALL!$B$3-AUTOCOOL!A107)>40000,0,(ALL!$B$3-AUTOCOOL!A107)) -> 0
K108: 0 | L108: 0 | M108: =IF((ALL!$B$3-AUTOCOOL!A108)>40000,0,(ALL!$B$3-AUTOCOOL!A108)) -> 0
K109: 0 | L109: 0 | M109: =IF((ALL!$B$3-AUTOCOOL!A109)>40000,0,(ALL!$B$3-AUTOCOOL!A109)) -> 0
K110: 0 | L110: 0 | M110: =IF((ALL!$B$3-AUTOCOOL!A110)>40000,0,(ALL!$B$3-AUTOCOOL!A110)) -> 0
K111: 0 | L111: 0 | M111: =IF((ALL!$B$3-AUTOCOOL!A111)>40000,0,(ALL!$B$3-AUTOCOOL!A111)) -> 0
K112: 0 | L112: 0 | M112: =IF((ALL!$B$3-AUTOCOOL!A112)>40000,0,(ALL!$B$3-AUTOCOOL!A112)) -> 0
K113: 0 | L113: 0 | M113: =IF((ALL!$B$3-AUTOCOOL!A113)>40000,0,(ALL!$B$3-AUTOCOOL!A113)) -> 0
K114: 0 | L114: 0 | M114: =IF((ALL!$B$3-AUTOCOOL!A114)>40000,0,(ALL!$B$3-AUTOCOOL!A114)) -> 0
K115: 0 | L115: 0 | M115: =IF((ALL!$B$3-AUTOCOOL!A115)>40000,0,(ALL!$B$3-AUTOCOOL!A115)) -> 0
K116: 0 | L116: 0 | M116: =IF((ALL!$B$3-AUTOCOOL!A116)>40000,0,(ALL!$B$3-AUTOCOOL!A116)) -> 0
K117: 0 | L117: 0 | M117: =IF((ALL!$B$3-AUTOCOOL!A117)>40000,0,(ALL!$B$3-AUTOCOOL!A117)) -> 0
K118: 0 | L118: 0 | M118: =IF((ALL!$B$3-AUTOCOOL!A118)>40000,0,(ALL!$B$3-AUTOCOOL!A118)) -> 0
K119: 0 | L119: 0 | M119: =IF((ALL!$B$3-AUTOCOOL!A119)>40000,0,(ALL!$B$3-AUTOCOOL!A119)) -> 0
K120: 0 | L120: 0 | M120: =IF((ALL!$B$3-AUTOCOOL!A120)>40000,0,(ALL!$B$3-AUTOCOOL!A120)) -> 0
K121: 0 | L121: 0 | M121: =IF((ALL!$B$3-AUTOCOOL!A121)>40000,0,(ALL!$B$3-AUTOCOOL!A121)) -> 0
K122: 0 | L122: 0 | M122: =IF((ALL!$B$3-AUTOCOOL!A122)>40000,0,(ALL!$B$3-AUTOCOOL!A122)) -> 0
K123: 0 | L123: 0 | M123: =IF((ALL!$B$3-AUTOCOOL!A123)>40000,0,(ALL!$B$3-AUTOCOOL!A123)) -> 0
K124: 0 | L124: 0 | M124: =IF((ALL!$B$3-AUTOCOOL!A124)>40000,0,(ALL!$B$3-AUTOCOOL!A124)) -> 0
K125: 0 | L125: 0 | M125: =IF((ALL!$B$3-AUTOCOOL!A125)>40000,0,(ALL!$B$3-AUTOCOOL!A125)) -> 0
K126: 0 | L126: 0 | M126: =IF((ALL!$B$3-AUTOCOOL!A126)>40000,0,(ALL!$B$3-AUTOCOOL!A126)) -> 0
K127: 0 | L127: 0 | M127: =IF((ALL!$B$3-AUTOCOOL!A127)>40000,0,(ALL!$B$3-AUTOCOOL!A127)) -> 0
K128: 0 | L128: 0 | M128: =IF((ALL!$B$3-AUTOCOOL!A128)>40000,0,(ALL!$B$3-AUTOCOOL!A128)) -> 0
K129: 0 | L129: 0 | M129: =IF((ALL!$B$3-AUTOCOOL!A129)>40000,0,(ALL!$B$3-AUTOCOOL!A129)) -> 0
K130: 0 | L130: 0 | M130: =IF((ALL!$B$3-AUTOCOOL!A130)>40000,0,(ALL!$B$3-AUTOCOOL!A130)) -> 0
K131: 0 | L131: 0 | M131: =IF((ALL!$B$3-AUTOCOOL!A131)>40000,0,(ALL!$B$3-AUTOCOOL!A131)) -> 0
K132: 0 | L132: 0 | M132: =IF((ALL!$B$3-AUTOCOOL!A132)>40000,0,(ALL!$B$3-AUTOCOOL!A132)) -> 0
K133: 0 | L133: 0 | M133: =IF((ALL!$B$3-AUTOCOOL!A133)>40000,0,(ALL!$B$3-AUTOCOOL!A133)) -> 0
K134: 0 | L134: 0 | M134: =IF((ALL!$B$3-AUTOCOOL!A134)>40000,0,(ALL!$B$3-AUTOCOOL!A134)) -> 0
K135: =SUM(C135:J135) -> 0 | L135: 0 | M135: =IF((ALL!$B$3-AUTOCOOL!A135)>40000,0,(ALL!$B$3-AUTOCOOL!A135)) -> 0
K136: 0 | L136: =IF(AND(M136>365),"OVER A YEAR",IF(AND(M136>0,M136<31),"1 MONTH",IF(AND(M136>30,M136<61),"2 MONTHS",IF(AND(M136>60,M136<91),"3 MONTHS",IF(AND(M136>90,M136<181),"3 : 6 MONTHS",IF(AND(M136>180,M136<271),"6 : 9 MONTHS",IF(AND(M136>270,M136<366),"9 : 12 MONTHS",IF(M136=0,0)))))))) -> 0 | M136: =IF((ALL!$B$3-AUTOCOOL!A136)>40000,0,(ALL!$B$3-AUTOCOOL!A136)) -> 0
K137: 0 | L137: 0 | M137: =IF((ALL!$B$3-AUTOCOOL!A137)>40000,0,(ALL!$B$3-AUTOCOOL!A137)) -> 0
K138: 0 | L138: 0 | M138: =IF((ALL!$B$3-AUTOCOOL!A138)>40000,0,(ALL!$B$3-AUTOCOOL!A138)) -> 0
K139: 0 | L139: 0 | M139: =IF((ALL!$B$3-AUTOCOOL!A139)>40000,0,(ALL!$B$3-AUTOCOOL!A139)) -> 0
K140: 0 | L140: 0 | M140: =IF((ALL!$B$3-AUTOCOOL!A140)>40000,0,(ALL!$B$3-AUTOCOOL!A140)) -> 0
K141: 0 | L141: 0 | M141: =IF((ALL!$B$3-AUTOCOOL!A141)>40000,0,(ALL!$B$3-AUTOCOOL!A141)) -> 0
K142: 0 | L142: 0 | M142: =IF((ALL!$B$3-AUTOCOOL!A142)>40000,0,(ALL!$B$3-AUTOCOOL!A142)) -> 0
K143: 0 | L143: 0 | M143: =IF((ALL!$B$3-AUTOCOOL!A143)>40000,0,(ALL!$B$3-AUTOCOOL!A143)) -> 0
K144: 0 | L144: 0 | M144: =IF((ALL!$B$3-AUTOCOOL!A144)>40000,0,(ALL!$B$3-AUTOCOOL!A144)) -> 0
K145: 0 | L145: 0 | M145: =IF((ALL!$B$3-AUTOCOOL!A145)>40000,0,(ALL!$B$3-AUTOCOOL!A145)) -> 0
K146: 0 | L146: 0 | M146: =IF((ALL!$B$3-AUTOCOOL!A146)>40000,0,(ALL!$B$3-AUTOCOOL!A146)) -> 0
K147: 0 | L147: 0 | M147: =IF((ALL!$B$3-AUTOCOOL!A147)>40000,0,(ALL!$B$3-AUTOCOOL!A147)) -> 0
K148: 0 | L148: 0 | M148: =IF((ALL!$B$3-AUTOCOOL!A148)>40000,0,(ALL!$B$3-AUTOCOOL!A148)) -> 0
K149: 0 | L149: 0 | M149: =IF((ALL!$B$3-AUTOCOOL!A149)>40000,0,(ALL!$B$3-AUTOCOOL!A149)) -> 0
K150: 0 | L150: 0 | M150: =IF((ALL!$B$3-AUTOCOOL!A150)>40000,0,(ALL!$B$3-AUTOCOOL!A150)) -> 0
K151: 0 | L151: 0 | M151: =IF((ALL!$B$3-AUTOCOOL!A151)>40000,0,(ALL!$B$3-AUTOCOOL!A151)) -> 0
K152: 0 | L152: 0 | M152: =IF((ALL!$B$3-AUTOCOOL!A152)>40000,0,(ALL!$B$3-AUTOCOOL!A152)) -> 0
K153: 0 | L153: 0 | M153: =IF((ALL!$B$3-AUTOCOOL!A153)>40000,0,(ALL!$B$3-AUTOCOOL!A153)) -> 0
K154: 0 | L154: 0 | M154: =IF((ALL!$B$3-AUTOCOOL!A154)>40000,0,(ALL!$B$3-AUTOCOOL!A154)) -> 0
K155: 0 | L155: 0 | M155: =IF((ALL!$B$3-AUTOCOOL!A155)>40000,0,(ALL!$B$3-AUTOCOOL!A155)) -> 0
K156: 0 | L156: 0 | M156: =IF((ALL!$B$3-AUTOCOOL!A156)>40000,0,(ALL!$B$3-AUTOCOOL!A156)) -> 0
K157: 0 | L157: 0 | M157: =IF((ALL!$B$3-AUTOCOOL!A157)>40000,0,(ALL!$B$3-AUTOCOOL!A157)) -> 0
K158: 0 | L158: 0 | M158: =IF((ALL!$B$3-AUTOCOOL!A158)>40000,0,(ALL!$B$3-AUTOCOOL!A158)) -> 0
K159: 0 | L159: 0 | M159: =IF((ALL!$B$3-AUTOCOOL!A159)>40000,0,(ALL!$B$3-AUTOCOOL!A159)) -> 0
K160: 0 | L160: 0 | M160: =IF((ALL!$B$3-AUTOCOOL!A160)>40000,0,(ALL!$B$3-AUTOCOOL!A160)) -> 0
K161: 0 | L161: 0 | M161: =IF((ALL!$B$3-AUTOCOOL!A161)>40000,0,(ALL!$B$3-AUTOCOOL!A161)) -> 0
K162: 0 | L162: 0 | M162: =IF((ALL!$B$3-AUTOCOOL!A162)>40000,0,(ALL!$B$3-AUTOCOOL!A162)) -> 0
K163: 0 | L163: 0 | M163: =IF((ALL!$B$3-AUTOCOOL!A163)>40000,0,(ALL!$B$3-AUTOCOOL!A163)) -> 0
K164: 0 | L164: 0 | M164: =IF((ALL!$B$3-AUTOCOOL!A164)>40000,0,(ALL!$B$3-AUTOCOOL!A164)) -> 0
K165: 0 | L165: 0 | M165: =IF((ALL!$B$3-AUTOCOOL!A165)>40000,0,(ALL!$B$3-AUTOCOOL!A165)) -> 0
K166: 0 | L166: 0 | M166: =IF((ALL!$B$3-AUTOCOOL!A166)>40000,0,(ALL!$B$3-AUTOCOOL!A166)) -> 0
K167: 0 | L167: 0 | M167: =IF((ALL!$B$3-AUTOCOOL!A167)>40000,0,(ALL!$B$3-AUTOCOOL!A167)) -> 0
K168: 0 | L168: 0 | M168: =IF((ALL!$B$3-AUTOCOOL!A168)>40000,0,(ALL!$B$3-AUTOCOOL!A168)) -> 0
K169: 0 | L169: 0 | M169: =IF((ALL!$B$3-AUTOCOOL!A169)>40000,0,(ALL!$B$3-AUTOCOOL!A169)) -> 0
K170: 0 | L170: 0 | M170: =IF((ALL!$B$3-AUTOCOOL!A170)>40000,0,(ALL!$B$3-AUTOCOOL!A170)) -> 0
K171: 0 | L171: 0 | M171: =IF((ALL!$B$3-AUTOCOOL!A171)>40000,0,(ALL!$B$3-AUTOCOOL!A171)) -> 0
K172: 0 | L172: 0 | M172: =IF((ALL!$B$3-AUTOCOOL!A172)>40000,0,(ALL!$B$3-AUTOCOOL!A172)) -> 0
K173: 0 | L173: 0 | M173: =IF((ALL!$B$3-AUTOCOOL!A173)>40000,0,(ALL!$B$3-AUTOCOOL!A173)) -> 0
K174: 0 | L174: 0 | M174: =IF((ALL!$B$3-AUTOCOOL!A174)>40000,0,(ALL!$B$3-AUTOCOOL!A174)) -> 0
K175: 0 | L175: 0 | M175: =IF((ALL!$B$3-AUTOCOOL!A175)>40000,0,(ALL!$B$3-AUTOCOOL!A175)) -> 0
K176: 0 | L176: 0 | M176: =IF((ALL!$B$3-AUTOCOOL!A176)>40000,0,(ALL!$B$3-AUTOCOOL!A176)) -> 0
K177: 0 | L177: 0 | M177: =IF((ALL!$B$3-AUTOCOOL!A177)>40000,0,(ALL!$B$3-AUTOCOOL!A177)) -> 0
K178: 0 | L178: 0 | M178: =IF((ALL!$B$3-AUTOCOOL!A178)>40000,0,(ALL!$B$3-AUTOCOOL!A178)) -> 0
K179: 0 | L179: 0 | M179: =IF((ALL!$B$3-AUTOCOOL!A179)>40000,0,(ALL!$B$3-AUTOCOOL!A179)) -> 0
K180: 0 | L180: 0 | M180: =IF((ALL!$B$3-AUTOCOOL!A180)>40000,0,(ALL!$B$3-AUTOCOOL!A180)) -> 0
K181: 0 | L181: 0 | M181: =IF((ALL!$B$3-AUTOCOOL!A181)>40000,0,(ALL!$B$3-AUTOCOOL!A181)) -> 0
K182: 0 | L182: 0 | M182: =IF((ALL!$B$3-AUTOCOOL!A182)>40000,0,(ALL!$B$3-AUTOCOOL!A182)) -> 0
K183: 0 | L183: 0 | M183: =IF((ALL!$B$3-AUTOCOOL!A183)>40000,0,(ALL!$B$3-AUTOCOOL!A183)) -> 0
K184: 0 | L184: 0 | M184: =IF((ALL!$B$3-AUTOCOOL!A184)>40000,0,(ALL!$B$3-AUTOCOOL!A184)) -> 0
K185: 0 | L185: 0 | M185: =IF((ALL!$B$3-AUTOCOOL!A185)>40000,0,(ALL!$B$3-AUTOCOOL!A185)) -> 0
K186: 0 | L186: 0 | M186: =IF((ALL!$B$3-AUTOCOOL!A186)>40000,0,(ALL!$B$3-AUTOCOOL!A186)) -> 0
K187: 0 | L187: 0 | M187: =IF((ALL!$B$3-AUTOCOOL!A187)>40000,0,(ALL!$B$3-AUTOCOOL!A187)) -> 0
K188: 0 | L188: 0 | M188: =IF((ALL!$B$3-AUTOCOOL!A188)>40000,0,(ALL!$B$3-AUTOCOOL!A188)) -> 0
K189: 0 | L189: 0 | M189: =IF((ALL!$B$3-AUTOCOOL!A189)>40000,0,(ALL!$B$3-AUTOCOOL!A189)) -> 0
K190: 0 | L190: 0 | M190: =IF((ALL!$B$3-AUTOCOOL!A190)>40000,0,(ALL!$B$3-AUTOCOOL!A190)) -> 0
K191: 0 | L191: 0 | M191: =IF((ALL!$B$3-AUTOCOOL!A191)>40000,0,(ALL!$B$3-AUTOCOOL!A191)) -> 0
K192: 0 | L192: 0 | M192: =IF((ALL!$B$3-AUTOCOOL!A192)>40000,0,(ALL!$B$3-AUTOCOOL!A192)) -> 0
K193: 0 | L193: 0 | M193: =IF((ALL!$B$3-AUTOCOOL!A193)>40000,0,(ALL!$B$3-AUTOCOOL!A193)) -> 0
K194: 0 | L194: 0 | M194: =IF((ALL!$B$3-AUTOCOOL!A194)>40000,0,(ALL!$B$3-AUTOCOOL!A194)) -> 0
K195: 0 | L195: 0 | M195: =IF((ALL!$B$3-AUTOCOOL!A195)>40000,0,(ALL!$B$3-AUTOCOOL!A195)) -> 0
K196: 0 | L196: 0 | M196: =IF((ALL!$B$3-AUTOCOOL!A196)>40000,0,(ALL!$B$3-AUTOCOOL!A196)) -> 0
K197: 0 | L197: 0 | M197: =IF((ALL!$B$3-AUTOCOOL!A197)>40000,0,(ALL!$B$3-AUTOCOOL!A197)) -> 0
K198: 0 | L198: 0 | M198: =IF((ALL!$B$3-AUTOCOOL!A198)>40000,0,(ALL!$B$3-AUTOCOOL!A198)) -> 0
K199: =SUM(C199:J199) -> 0 | L199: 0 | M199: =IF((ALL!$B$3-AUTOCOOL!A199)>40000,0,(ALL!$B$3-AUTOCOOL!A199)) -> 0
K200: 0 | L200: =IF(AND(M200>365),"OVER A YEAR",IF(AND(M200>0,M200<31),"1 MONTH",IF(AND(M200>30,M200<61),"2 MONTHS",IF(AND(M200>60,M200<91),"3 MONTHS",IF(AND(M200>90,M200<181),"3 : 6 MONTHS",IF(AND(M200>180,M200<271),"6 : 9 MONTHS",IF(AND(M200>270,M200<366),"9 : 12 MONTHS",IF(M200=0,0)))))))) -> 0 | M200: =IF((ALL!$B$3-AUTOCOOL!A200)>40000,0,(ALL!$B$3-AUTOCOOL!A200)) -> 0
... 801 more rows
